bitfinex/quotes_SOLUSD_20251006
["timestamp","ask_amount","ask_price","bid_price","bid_amount"]
[1759788226842,15.1440494,234.33,234.32,30.39]
[1759788228680,15.1440494,234.33,234.32,29.68]
[1759788229167,28.02347142,234.33,234.3,3.556827]
[1759788229361,12.55374643,234.31,234.3,3.556827]
[1759788229568,13.08722771,234.31,234.3,3.556827]
[1759788229762,17.35507799,234.31,234.3,3.556827]
[1759788231169,30.16819862,234.31,234.3,3.556827]
[1759788231468,17.35507799,234.31,234.3,3.556827]
[1759788238254,20.91190499,234.31,234.3,3.556827]
[1759788238455,19.23463377,234.31,234.3,3.556827]
[1759788238750,20.91190499,234.31,234.3,3.556827]
[1759788238954,10.87647521,234.33,234.3,33.966827]
[1759788239152,4.26730391,234.34,234.31,0.71]
[1759788239381,10.87647521,234.33,234.31,0.71]
[1759788240176,11.40991096,234.33,234.31,0.71]
[1759788240562,10.87647521,234.31,234.3,3.556827]
[1759788240766,11.40995649,234.31,234.3,3.556827]
[1759788241857,17.35507799,234.31,234.3,3.556827]
[1759788243466,17.35507799,234.31,234.3,4.266827]
[1759788244660,17.35507799,234.31,234.3,3.556827]
[1759788244861,17.35507799,234.31,234.3,4.266827]
[1759788246358,15.67780677,234.31,234.3,4.266827]
[1759788246992,0.53348128,234.31,234.3,4.266827]
[1759788247278,10.87647521,234.32,234.3,4.266827]
[1759788247465,10.87647521,234.32,234.31,30.45]
[1759788248262,4.26731416,234.34,234.31,30.45]
[1759788248481,10.87647521,234.35,234.32,0.71]
[1759788249287,14.55800958,234.9,234.32,4.97765107]
[1759788249288,4.26611752,234.41,234.32,4.97765107]
[1759788249585,10.87647521,234.41,234.33,0.71]
[1759788250875,4.2662116,234.4,234.33,0.71]
[1759788251070,4.2662116,234.4,234.33,4.97746585]
[1759788251269,4.2662116,234.4,234.34,0.71]
[1759788252690,4.2660296,234.41,234.34,21.51]
[1759788252882,10.87647521,234.4,234.35,0.71]
[1759788253183,10.87647521,234.4,234.36,29.76]
[1759788253389,10.87647521,234.4,234.37,0.71]
[1759788254990,4.26628829,234.4,234.37,0.71]
[1759788255596,0.53311724,234.47,234.37,0.71]
[1759788255776,15.14159505,234.46,234.37,4.97670912]
[1759788256089,10.87647521,234.46,234.38,0.71]
[1759788256480,4.26475605,234.48,234.39,20.8]
[1759788256682,15.14123126,234.48,234.4,0.71]
[1759788256885,15.14123126,234.48,234.41,29.76]
[1759788257185,15.14123126,234.48,234.42,0.71]
[1759788257699,25.80312139,234.48,234.42,0.71]
[1759788259400,15.14123126,234.48,234.42,0.71]
[1759788260701,10.87647521,234.46,234.42,0.71]
[1759788261105,4.26530177,234.45,234.43,0.71]
[1759788262786,31.67647521,234.44,234.41,29.76]
[1759788263004,33.35374643,234.44,234.41,29.76]
[1759788263201,4.26566565,234.43,234.41,29.76]
[1759788266590,4.26566565,234.43,234.41,30.47]
[1759788266992,4.26566565,234.43,234.41,29.76]
[1759788267194,15.14214086,234.43,234.42,0.71]
[1759788267708,15.14214086,234.43,234.41,29.76]
[1759788268614,10.87647521,234.42,234.41,29.76]
[1759788270207,16.81959405,234.42,234.41,29.76]
[1759788271008,10.87647521,234.41,234.38,29.78]
[1759788271320,10.87647521,234.41,234.39,0.71]
[1759788272019,15.14268681,234.4,234.39,0.71]
[1759788274327,15.14268681,234.4,234.39,30.47]
[1759788275226,15.14268681,234.4,234.39,0.71]
[1759788275422,15.14268681,234.4,234.39,30.47]
[1759788275726,15.14268681,234.4,234.39,29.76]
[1759788276106,15.14268681,234.4,234.38,0.71]
[1759788276303,25.80821582,234.4,234.39,30.47]
[1759788277502,25.80821582,234.4,234.39,29.76]
[1759788278014,25.80821582,234.4,234.39,30.47]
[1759788278620,27.48548704,234.4,234.39,29.76]
[1759788279234,28.42901571,234.4,234.39,29.76]
[1759788280312,31.10979527,234.4,234.39,29.76]
[1759788282725,10.87647521,234.39,234.36,0.71]
[1759788282905,13.4972751,234.37,234.33,0.71]
[1759788283105,13.4972751,234.35,234.31,0.71]
[1759788283430,0.53341298,234.34,234.31,0.71]
[1759788283629,13.4972751,234.33,234.3,3.556827]
[1759788283804,13.4972751,234.33,234.3,4.266827]
[1759788284004,10.87647521,234.33,234.31,29.76]
[1759788284208,2.62079989,234.35,234.32,0.71]
[1759788284523,3.15419011,234.35,234.33,0.71]
[1759788285026,3.15419011,234.35,234.31,29.76]
[1759788285210,3.15419011,234.35,234.31,30.47]
[1759788285532,14.03066532,234.35,234.31,30.47]
[1759788286616,10.87647521,234.33,234.31,30.47]
[1759788287019,0.53345851,234.32,234.31,29.76]
[1759788288530,4.80112665,234.32,234.31,29.76]
[1759788296817,15.67760186,234.32,234.31,29.76]
[1759788297130,31.67647521,234.31,234.3,1e-08]
[1759788297330,36.97899739,234.31,234.3,1e-08]
[1759788297759,10.87647521,234.3,234.27,1e-08]
[1759788297918,49.57387109,234.31,234.27,1e-08]
[1759788297919,13.4972751,234.28,234.27,1e-08]
[1759788298227,20.44642926,234.28,234.27,1e-08]
[1759788298942,20.97997885,234.28,234.27,1e-08]
[1759788300940,20.97997885,234.28,234.27,1e-08]
[1759788302243,10.87647521,234.24,234.23,1e-08]
[1759788302441,14.03091581,234.24,234.23,1e-08]
[1759788302644,16.70691286,234.24,234.23,1e-08]
[1759788303348,20.97603854,234.24,234.23,1e-08]
[1759788304250,18.30004149,234.24,234.23,1e-08]
[1759788304746,15.6792416,234.24,234.23,1e-08]
[1759788305050,18.30004149,234.24,234.23,0.70000001]
[1759788317963,23.59470446,234.24,234.23,1e-08]
[1759788318841,25.30385052,234.24,234.23,1e-08]
[1759788319965,55.04385052,234.24,234.23,1e-08]
[1759788321352,55.04435025,234.24,234.23,1e-08]
[1759788322343,10.87647521,234.16,234.14,0.67]
[1759788322547,14.03112092,234.15,234.14,0.67]
[1759788322863,10.87647521,234.14,234.13,0.2]
[1759788323362,34.2972751,234.14,234.13,0.87]
[1759788323970,35.94742421,234.14,234.13,0.87]
[1759788324351,38.5682241,234.14,234.13,0.87]
[1759788324549,35.94742421,234.14,234.13,0.87]
[1759788326345,38.5682241,234.14,234.13,0.87]
[1759788327449,38.5682241,234.14,234.13,0.2]
[1759788327650,41.24424364,234.14,234.13,0.2]
[1759788328276,20.44424364,234.14,234.13,1e-08]
[1759788328465,31.67647521,234.13,234.08,0.37000001]
[1759788328642,13.4972751,234.09,234.08,0.37000001]
[1759788328848,10.87647521,234.08,234.07,25.88]
[1759788329458,10.87647521,234.09,234.07,25.88]
[1759788330272,4.27204374,234.08,234.07,25.88]
[1759788330472,4.27204374,234.08,234.07,26.55]
[1759788330969,4.27204374,234.08,234.07,0.67]
[1759788331968,6.89284363,234.08,234.07,0.67]
[1759788332978,7.42684909,234.08,234.07,0.67]
[1759788334172,10.87647521,234.07,234.04,0.67]
[1759788334378,10.87647521,234.07,234.05,0.67]
[1759788334580,10.87647521,234.05,234.03,29.76]
[1759788334786,14.03137183,234.04,234.03,29.76]
[1759788335079,14.03137183,234.04,234.02,0.2]
[1759788335080,18.30414571,234.04,234.02,0.2]
[1759788335377,10.87647521,234.03,234.02,1e-08]
[1759788335588,11.17647521,234.03,234.02,1e-08]
[1759788336266,13.84937467,234.03,234.02,1e-08]
[1759788336952,18.12233112,234.03,234.02,1e-08]
[1759788337460,20.44313101,234.03,234.02,1e-08]
[1759788337782,17.77023155,234.03,234.02,1e-08]
[1759788340778,17.77023155,234.03,234.02,0.71000001]
[1759788340978,17.77023155,234.03,234.02,1e-08]
[1759788341278,16.83230019,234.03,234.02,1e-08]
[1759788342277,16.83230019,234.03,234.02,0.71000001]
[1759788342462,37.63230019,234.03,234.02,0.71000001]
[1759788342775,37.63230019,234.03,234.02,1e-08]
[1759788345481,37.63230019,234.03,234.02,0.71000001]
[1759788349075,35.94943166,234.03,234.02,0.71000001]
[1759788349271,37.63230019,234.03,234.02,0.71000001]
[1759788349985,35.94943166,234.03,234.02,0.71000001]
[1759788350286,37.63230019,234.03,234.02,0.71000001]
[1759788353088,35.94943166,234.03,234.02,0.71000001]
[1759788353281,37.63230019,234.03,234.02,0.71000001]
[1759788354489,15.14943166,234.03,234.02,0.71000001]
[1759788361372,15.14943166,234.03,234.02,1e-08]
[1759788361580,17.36641974,234.03,234.02,1e-08]
[1759788367189,17.66641974,234.03,234.02,1e-08]
[1759788370286,15.98355121,234.03,234.02,1e-08]
[1759788370486,17.36641974,234.03,234.02,1e-08]
[1759788370883,17.66641974,234.03,234.02,1e-08]
[1759788371382,17.36641974,234.03,234.02,1e-08]
[1759788373009,15.68355121,234.03,234.02,1e-08]
[1759788373191,17.36641974,234.03,234.02,1e-08]
[1759788375009,15.68355121,234.03,234.02,0.71000001]
[1759788375307,17.36641974,234.03,234.02,0.71000001]
[1759788375493,17.36641974,234.03,234.02,1e-08]
[1759788376203,17.36641974,234.03,234.02,0.71000001]
[1759788377011,15.68355121,234.03,234.02,0.71000001]
[1759788377213,36.48355121,234.03,234.02,0.71000001]
[1759788378316,38.16641974,234.03,234.02,0.71000001]
[1759788384223,36.48355121,234.03,234.02,0.71000001]
[1759788386003,15.14943166,234.03,234.02,0.71000001]
[1759788392823,20.8,234.07,234.02,0.71000001]
[1759788393024,10.87647521,234.06,234.02,0.71000001]
[1759788393238,15.14888399,234.06,234.02,0.71000001]
[1759788393527,4.27204374,234.08,234.02,0.71000001]
[1759788393701,10.87647521,234.07,234.02,0.71000001]
[1759788394926,15.1485322,234.08,234.02,0.71000001]
[1759788396029,21.34491569,234.25,234.05,20.8]
[1759788396223,4.27002763,234.2,234.09,25.56018202]
[1759788396420,4.27002763,234.2,234.1,0.69]
[1759788396930,4.27002763,234.2,234.11,10.87647521]
[1759788397243,4.26912568,234.24,234.12,0.69]
[1759788397532,4.26912568,234.24,234.14,20.8]
[1759788397836,12.35491718,234.26,234.15,30.61]
[1759788397837,4.26892082,234.26,234.15,30.61]
[1759788398020,4.26892082,234.26,234.16,4.96058421]
[1759788398214,25.06892082,234.26,234.17,0.69]
[1759788398414,0.1,234.27,234.17,0.69]
[1759788398615,0.1,234.27,234.19,20.8]
[1759788398826,0.1,234.27,234.21,20.8]
[1759788399026,4.36861299,234.27,234.21,20.8]
[1759788399229,4.36861299,234.27,234.22,30.63]
[1759788399429,4.36861299,234.27,234.23,0.69]
[1759788399627,4.36861299,234.27,234.24,0.69]
[1759788399908,4.36861299,234.27,234.22,29.94]
[1759788400114,4.36861299,234.27,234.25,0.69]
[1759788401234,15.2450882,234.27,234.26,0.69]
[1759788401925,4.36861299,234.27,234.26,0.69]
[1759788403027,0.1,234.27,234.26,0.69]
[1759788411040,0.1,234.27,234.26,4.9587612]
[1759788412042,0.1,234.27,234.26,36.42620443]
[1759788413021,0.1,234.27,234.26,51.39]
[1759788415048,0.1,234.27,234.26,30.59]
[1759788418952,0.1,234.27,234.26,34.8587612]
[1759788419343,0.1,234.27,234.26,45.73523641]
[1759788420043,0.1,234.27,234.26,41.46647521]
[1759788421656,0.1,234.27,234.26,45.73523641]
[1759788423961,0.1,234.27,234.26,10.87647521]
[1759788424152,0.1,234.27,234.26,29.9]
[1759788424349,4.36857899,234.27,234.26,29.9]
[1759788425449,0.1,234.27,234.26,29.9]
[1759788427370,0.3,234.26,234.21,29.88]
[1759788427567,0.3,234.26,234.17,37.55039343]
[1759788427568,11.17647521,234.25,234.17,33.28]
[1759788427749,10.87647521,234.23,234.18,29.9]
[1759788427943,10.87647521,234.21,234.18,29.9]
[1759788428270,0.3,234.2,234.18,29.9]
[1759788428756,0.3,234.19,234.18,29.9]
[1759788428956,4.57003714,234.19,234.03,10.68218036]
[1759788429156,11.17647521,234.18,234.1,0.69]
[1759788429358,0.3,234.17,234.11,29.92]
[1759788429538,0.3,234.16,234.11,29.92]
[1759788430048,0.3,234.15,234.11,29.92]
[1759788430244,10.87647521,234.13,234.11,29.92]
[1759788430445,0.3,234.12,234.11,29.92]
[1759788431062,0.3,234.12,234.1,29.94]
[1759788431063,10.87647521,234.11,234.1,29.94]
[1759788431279,11.17647521,234.11,234.1,29.94]
[1759788431456,0.3,234.11,234.1,29.94]
[1759788432866,2.92332276,234.11,234.1,29.94]
[1759788433667,13.79979797,234.11,234.1,29.94]
[1759788433876,13.79979797,234.11,234.02,1e-08]
[1759788433877,10.87647521,234.09,234.02,1e-08]
[1759788434071,13.49979797,234.09,234.03,29.96]
[1759788434371,13.49979797,234.07,234.03,29.96]
[1759788434562,0.3,234.06,234.03,29.96]
[1759788435272,4.27259132,234.05,234.03,29.96]
[1759788436171,4.27259132,234.05,234.02,1e-08]
[1759788436369,15.14906653,234.05,234.04,29.96]
[1759788437168,0.53398265,234.09,234.04,30.65]
[1759788437372,10.87647521,234.09,234.05,0.69]
[1759788437574,10.87647521,234.07,234.04,29.96]
[1759788437871,10.87647521,234.07,234.05,0.69]
[1759788438751,25.07170489,234.1,234.06,0.7]
[1759788438955,4.27170489,234.1,234.06,0.7]
[1759788439268,10.87647521,234.11,234.06,0.7]
[1759788439761,0.3,234.16,234.06,4.97239298]
[1759788439762,13.49979797,234.16,234.06,4.97239298]
[1759788439961,13.49979797,234.16,234.07,0.7]
[1759788439962,6.89390697,234.16,234.07,0.7]
[1759788441276,4.270949,234.14,234.07,0.7]
[1759788443152,4.270949,234.14,234.07,4.97220723]
[1759788443354,4.270949,234.14,234.08,0.7]
[1759788443570,4.270949,234.14,234.09,29.96]
[1759788443771,4.270949,234.14,234.1,0.7]
[1759788444074,4.270949,234.14,234.11,0.7]
[1759788444655,4.270949,234.14,234.09,30.66]
[1759788445075,4.270949,234.14,234.09,29.96]
[1759788445285,4.270949,234.14,234.1,0.7]
[1759788450294,4.270949,234.14,234.09,29.96]
[1759788450475,4.27131385,234.12,234.1,0.7]
[1759788453067,4.27131385,234.12,234.09,29.96]
[1759788453068,15.14724181,234.15,234.09,29.96]
[1759788453370,10.87647521,234.15,234.11,0.7]
[1759788453988,4.27062687,234.16,234.09,29.96]
[1759788454284,15.14710208,234.16,234.1,0.7]
[1759788455867,15.14710208,234.16,234.1,4.97163987]
[1759788456076,15.14710208,234.16,234.11,0.7]
[1759788456273,15.14710208,234.16,234.12,0.7]
[1759788456593,0.53373185,234.2,234.09,34.23183864]
[1759788456892,10.67346242,234.23,234.13,0.66]
[1759788456893,10.87647521,234.23,234.13,0.66]
[1759788457187,10.87647521,234.23,234.14,29.94]
[1759788457373,15.14578315,234.23,234.15,4.9307666]
[1759788457575,15.14578315,234.23,234.16,0.66]
[1759788458477,10.87647521,234.23,234.16,0.66]
[1759788459310,10.87647521,234.23,234.17,4.27040184]
[1759788459488,10.87647521,234.23,234.18,0.66]
[1759788459789,10.87647521,234.23,234.19,30.6]
[1759788460285,10.87647521,234.23,234.2,0.66]
[1759788460486,15.14579343,234.23,234.2,0.66]
[1759788462391,10.87647521,234.23,234.2,0.66]
[1759788463281,15.14585204,234.23,234.2,0.66]
[1759788464181,4.26937683,234.23,234.2,0.66]
[1759788464791,14.94264669,234.23,234.19,29.94]
[1759788464995,10.87647521,234.22,234.19,29.94]
[1759788466077,4.26965088,234.22,234.19,29.94]
[1759788468478,10.87647521,234.23,234.19,30.6]
[1759788469294,4.26912568,234.24,234.19,30.6]
[1759788469295,0.1,234.27,234.2,0.66]
[1759788469498,15.24510463,234.27,234.2,0.66]
[1759788470279,15.24510463,234.27,234.21,4.26967251]
[1759788470280,4.36862942,234.27,234.21,4.26967251]
[1759788470481,4.36862942,234.27,234.22,0.66]
[1759788470681,4.36862942,234.27,234.23,30.6]
[1759788470912,4.36862942,234.27,234.23,29.94]
[1759788471087,15.54510463,234.27,234.23,29.94]
[1759788471486,15.24510463,234.27,234.23,29.94]
[1759788472193,15.24510463,234.27,234.23,30.6]
[1759788473403,10.87647521,234.26,234.23,29.94]
[1759788475407,15.04007689,234.27,234.23,29.94]
[1759788475408,4.26894343,234.25,234.23,29.94]
[1759788476189,10.87647521,234.24,234.23,29.94]
[1759788477207,4.26912568,234.24,234.23,29.94]
[1759788477908,4.56912568,234.24,234.23,29.94]
[1759788478099,4.26912568,234.24,234.23,29.94]
[1759788478408,15.14560089,234.24,234.23,29.94]
[1759788478612,10.87647521,234.23,234.19,30.56]
[1759788478790,10.87647521,234.23,234.19,29.9]
[1759788479104,10.87647521,234.23,234.19,30.56]
[1759788479707,4.26949022,234.22,234.19,29.9]
[1759788480014,4.26949022,234.22,234.19,30.56]
[1759788480220,4.26949022,234.22,234.2,0.66]
[1759788482316,4.26949022,234.22,234.19,29.9]
[1759788482611,4.26949022,234.22,234.19,30.56]
[1759788482920,10.87647521,234.21,234.19,29.9]
[1759788483117,11.17647521,234.21,234.19,29.9]
[1759788483319,10.87647521,234.21,234.19,29.9]
[1759788483824,15.14633003,234.2,234.19,29.9]
[1759788484912,15.14633003,234.2,234.19,30.56]
[1759788485505,0.83361792,234.25,234.19,30.56]
[1759788485506,31.47243382,234.25,234.19,30.56]
[1759788485706,13.51587325,234.24,234.2,0.66]
[1759788485909,15.14596543,234.22,234.21,0.66]
[1759788486108,17.78536347,234.22,234.21,0.66]
[1759788487522,6.90888826,234.22,234.21,0.66]
[1759788489829,2.64074522,234.22,234.21,0.66]
[1759788490721,4.26930794,234.23,234.21,0.66]
[1759788491029,2.64116557,234.22,234.21,0.66]
[1759788491217,4.26967251,234.21,234.19,29.9]
[1759788491417,10.87647521,234.2,234.19,29.9]
[1759788492229,13.51808643,234.2,234.19,29.9]
[1759788492827,17.78794125,234.2,234.19,29.9]
[1759788495426,15.14633003,234.2,234.19,29.9]
[1759788495638,17.79010349,234.2,234.19,29.9]
[1759788497921,2.64377346,234.2,234.19,30.56]
[1759788499243,6.91362828,234.2,234.19,30.56]
[1759788500532,6.91362828,234.2,234.19,29.9]
[1759788500729,17.79010349,234.2,234.19,29.9]
[1759788503947,15.14633003,234.2,234.19,29.9]
[1759788504146,17.7929784,234.2,234.19,29.9]
[1759788509351,19.47221824,234.2,234.19,29.9]
[1759788509851,19.47199383,234.2,234.19,29.9]
[1759788510560,10.87647521,234.19,234.15,30.54]
[1759788510736,2.64642396,234.18,234.15,30.54]
[1759788510936,2.64642396,234.17,234.15,30.54]
[1759788511136,12.55571505,234.19,234.15,30.54]
[1759788511137,2.64642396,234.16,234.15,30.54]
[1759788511535,2.64642396,234.17,234.15,30.54]
[1759788511732,2.64642396,234.16,234.15,29.84]
[1759788511945,6.91700817,234.16,234.15,29.84]
[1759788512256,6.91700817,234.16,234.15,30.54]
[1759788514441,17.79285048,234.16,234.15,29.84]
[1759788514848,10.87647521,234.15,234.1,0.7]
[1759788515045,10.87647521,234.13,234.11,29.84]
[1759788515248,2.64579106,234.12,234.11,30.54]
[1759788515647,2.64579106,234.12,234.11,29.84]
[1759788515849,13.52226627,234.12,234.11,29.84]
[1759788516166,19.47281996,234.12,234.11,29.84]
[1759788516955,10.87647521,234.11,234.02,1e-08]
[1759788517162,2.64579106,234.1,234.03,30.52]
[1759788517370,10.87647521,234.09,234.04,0.68]
[1759788517576,2.64468897,234.08,234.04,0.68]
[1759788518374,4.27222625,234.07,234.04,0.68]
[1759788519672,4.27222625,234.07,234.05,0.68]
[1759788519874,4.27222625,234.07,234.06,0.68]
[1759788520749,10.67970855,234.09,234.06,0.68]
[1759788521743,14.95156979,234.09,234.03,29.84]
[1759788521940,10.87647521,234.06,234.03,29.84]
[1759788522750,10.87647521,234.06,234.03,30.52]
[1759788523462,10.87647521,234.06,234.04,0.68]
[1759788523657,4.27259132,234.05,234.04,0.68]
[1759788529076,6.8870803,234.05,234.02,1e-08]
[1759788529276,2.61448898,234.04,234.02,1e-08]
[1759788529455,2.61448898,234.04,234.02,0.70000001]
[1759788530257,4.27295645,234.03,234.02,0.70000001]
[1759788530875,4.27295645,234.03,234.02,1e-08]
[1759788532270,10.87647521,234.04,234.02,1e-08]
[1759788533562,4.27295645,234.03,234.02,1e-08]
[1759788533964,0.3,234.07,234.02,1e-08]
[1759788533965,0.53400546,234.08,234.02,0.70000001]
[1759788534165,10.87647521,234.09,234.02,0.70000001]
[1759788535259,10.87647521,234.07,234.02,0.70000001]
[1759788536367,4.27240878,234.06,234.02,0.70000001]
[1759788537164,14.95343074,234.06,234.02,0.70000001]
[1759788538872,4.27167876,234.1,234.02,0.70000001]
[1759788539076,10.87647521,234.09,234.02,0.70000001]
[1759788540469,4.27204374,234.08,234.02,0.70000001]
[1759788543785,14.9521531,234.08,234.02,0.70000001]
[1759788552374,4.27204374,234.08,234.02,0.70000001]
[1759788552592,4.27204374,234.08,234.02,4.97308832]
[1759788552795,4.27204374,234.08,234.03,11.87647521]
[1759788552983,4.27204374,234.08,234.04,0.7]
[1759788553882,4.27204374,234.08,234.05,29.78]
[1759788554191,4.27204374,234.08,234.06,0.7]
[1759788554394,10.87647521,234.1,234.06,0.7]
[1759788555697,4.27186124,234.09,234.06,0.7]
[1759788558991,4.27186124,234.09,234.05,29.78]
[1759788559184,4.27186124,234.09,234.05,30.47]
[1759788559586,4.57186124,234.09,234.05,29.78]
[1759788560489,4.27186124,234.09,234.05,30.47]
[1759788562873,4.27186124,234.09,234.05,29.78]
[1759788563079,4.27186124,234.09,234.06,0.69]
[1759788563301,4.27186124,234.09,234.07,0.69]
[1759788563801,10.87647521,234.1,234.08,0.69]
[1759788564003,4.27114184,234.13,234.09,29.78]
[1759788564184,4.27114184,234.13,234.1,0.69]
[1759788565105,10.87647521,234.14,234.11,0.69]
[1759788565300,10.87647521,234.14,234.09,29.78]
[1759788565603,10.87647521,234.14,234.09,30.47]
[1759788567207,4.27113142,234.13,234.09,30.47]
[1759788567409,4.27113142,234.13,234.09,29.78]
[1759788567706,4.27113142,234.13,234.1,0.69]
[1759788573409,4.27113142,234.13,234.09,29.78]
[1759788573606,4.27113142,234.13,234.1,0.69]
[1759788574118,14.94895997,234.13,234.09,29.78]
[1759788574311,14.94895997,234.13,234.09,30.47]
[1759788576002,14.94895997,234.13,234.09,29.78]
[1759788576206,14.94895997,234.13,234.09,30.47]
[1759788577513,14.94895997,234.13,234.1,0.7]
[1759788584116,12.85744377,234.12,234.02,1e-08]
[1759788584303,12.85744377,234.12,234.03,30.48]
[1759788584496,12.55744377,234.1,234.03,30.48]
[1759788584708,10.87647521,234.07,234.03,29.78]
[1759788584904,0.3,234.06,234.03,29.78]
[1759788585823,14.95343074,234.06,234.03,29.78]
[1759788586040,4.27240878,234.06,234.03,30.48]
[1759788586325,15.44852092,234.08,234.03,30.48]
[1759788586822,26.12863028,234.08,234.03,30.48]
[1759788592026,25.82863028,234.08,234.04,0.72]
[1759788592221,26.12863028,234.08,234.03,29.78]
[1759788592427,26.12863028,234.08,234.04,0.72]
[1759788593022,25.82863028,234.08,234.04,0.72]
[1759788595929,14.95215507,234.08,234.04,0.72]
[1759788596531,4.27240878,234.06,234.04,0.72]
[1759788599531,10.87647521,234.07,234.04,0.72]
[1759788600436,4.27240878,234.06,234.04,0.72]
[1759788601138,14.95343074,234.06,234.03,30.5]
[1759788601311,14.95343074,234.06,234.03,29.78]
[1759788601516,14.95343074,234.06,234.03,30.5]
[1759788601913,14.95343074,234.06,234.04,0.72]
[1759788603023,15.14864965,234.08,234.05,0.72]
[1759788603214,10.87647521,234.08,234.05,0.72]
[1759788603831,4.27131385,234.12,234.05,0.72]
[1759788604216,10.87647521,234.13,234.05,0.72]
[1759788605121,4.27131385,234.12,234.05,0.72]
[1759788606440,10.87647521,234.17,234.06,20.8]
[1759788606744,10.87647521,234.17,234.07,0.72]
[1759788607043,10.87647521,234.15,234.08,34.05188612]
[1759788607338,10.87647521,234.15,234.09,0.72]
[1759788608030,4.27058421,234.16,234.09,0.72]
[1759788608337,10.87647521,234.17,234.1,4.27167876]
[1759788608529,10.87647521,234.17,234.11,0.72]
[1759788609434,15.14704552,234.17,234.11,0.72]
[1759788611636,25.82305013,234.17,234.11,0.72]
[1759788613640,0.3,234.16,234.08,29.78]
[1759788613818,0.3,234.15,234.08,30.5]
[1759788614239,0.3,234.15,234.08,29.78]
[1759788614432,0.3,234.15,234.09,0.72]
[1759788614834,10.87647521,234.16,234.09,0.72]
[1759788615840,15.14718709,234.16,234.09,4.99170946]
[1759788616042,15.14718709,234.16,234.1,0.72]
[1759788616935,15.14718709,234.16,234.1,4.99163622]
[1759788617123,15.14718709,234.16,234.11,0.72]
[1759788619052,4.27071188,234.16,234.11,0.72]
[1759788620154,10.87647521,234.17,234.11,0.72]
[1759788621131,4.27058421,234.16,234.11,0.72]
[1759788621528,4.27058421,234.16,234.12,0.68]
[1759788623453,6.82409506,234.15,234.12,0.68]
[1759788623758,4.2707804,234.15,234.12,0.68]
[1759788624853,4.27040184,234.17,234.13,0.68]
[1759788625053,4.27040184,234.17,234.14,29.76]
[1759788625359,4.27040184,234.17,234.15,0.68]
[1759788625857,14.94470726,234.2,234.15,0.68]
[1759788626062,2.55285431,234.19,234.15,0.68]
[1759788627262,4.27021948,234.18,234.15,0.68]
[1759788627439,4.27021948,234.18,234.14,29.76]
[1759788627440,2.55285431,234.17,234.14,30.44]
[1759788627840,2.55285431,234.17,234.14,29.76]
[1759788628056,2.55285431,234.17,234.15,0.68]
[1759788629237,6.82340299,234.17,234.14,29.76]
[1759788629435,2.55183499,234.16,234.14,29.76]
[1759788630465,4.2707666,234.15,234.14,29.76]
[1759788632260,4.27040184,234.17,234.14,29.76]
[1759788632458,2.55248288,234.16,234.14,29.76]
[1759788633548,2.85248288,234.16,234.14,29.76]
[1759788633742,2.55248288,234.15,234.14,29.76]
[1759788633952,13.72895809,234.15,234.08,0.68]
[1759788634164,2.85248288,234.14,234.09,29.76]
[1759788634373,4.27131385,234.12,234.09,29.76]
[1759788634867,4.27131385,234.12,234.09,30.44]
[1759788635067,14.94959849,234.12,234.07,0.68]
[1759788635284,2.55346078,234.11,234.08,29.76]
[1759788636145,2.85346078,234.11,234.08,29.76]
[1759788636445,4.27186124,234.09,234.08,29.76]
[1759788637652,4.27186124,234.09,234.08,30.42]
[1759788638458,10.67828464,234.12,234.08,29.76]
[1759788638660,2.55456532,234.11,234.08,29.76]
[1759788638864,2.55456532,234.11,234.08,30.42]
[1759788639266,2.55456532,234.11,234.08,29.76]